Workbook

Sheet Zpracování dat
R4: Bodové hodnocení jednotlivých ukázek
A5: Vzorek | C5: Body | F5: Metoda digitalizace | H5: Ukázka | P5: Průměr | R5: 1 | T5: 2 | V5: 3 | X5: 4 | Z5: 5 | AB5: 6 | AD5: 7 | AF5: 8
A6: 1 | B6: → | C6: 3 | H6: 1 | I6: 2 | J6: 3 | K6: 4 | L6: 5 | M6: 6 | N6: 7 | O6: 8 | R6: Suma | S6: Průměr | T6: Suma | U6: Průměr | V6: Suma | W6: Průměr | X6: Suma | Y6: Průměr | Z6: Suma | AA6: Průměr | AB6: Suma | AC6: Průměr | AD6: Suma | AE6: Průměr | AF6: Suma | AG6: Průměr
A7: 10 | B7: → | C7: 2 | F7: Barrandov | H7: 81 | I7: 81 | J7: 48 | K7: 54 | L7: 75 | M7: 38 | N7: 61 | O7: 79 | P7: =SUM(H7:O7)/(8) -> 64.625 | R7: 81 | S7: =R7/$H$14 -> 4.05 | T7: 81 | U7: =T7/$H$14 -> 4.05 | V7: 48 | W7: =V7/$H$14 -> 2.4 | X7: 54 | Y7: =X7/$H$14 -> 2.7 | Z7: 75 | AA7: =Z7/$H$14 -> 3.75 | AB7: 38 | AC7: =AB7/$H$14 -> 1.9 | AD7: 61 | AE7: =AD7/$H$14 -> 3.05 | AF7: 79 | AG7: =AF7/$H$14 -> 3.95
A8: 19 | B8: → | C8: 3 | F8: COSP | H8: 78 | I8: 58 | J8: 50 | K8: 62 | L8: 71 | M8: 39 | N8: 63 | O8: 79 | P8: =SUM(H8:O8)/(8) -> 62.5 | R8: 78 | S8: =R8/$H$14 -> 3.9 | T8: 58 | U8: =T8/$H$14 -> 2.9 | V8: 50 | W8: =V8/$H$14 -> 2.5 | X8: 62 | Y8: =X8/$H$14 -> 3.1 | Z8: 71 | AA8: =Z8/$H$14 -> 3.55 | AB8: 39 | AC8: =AB8/$H$14 -> 1.95 | AD8: 63 | AE8: =AD8/$H$14 -> 3.15 | AF8: 79 | AG8: =AF8/$H$14 -> 3.95
A9: 32 | B9: → | C9: 3 | F9: Ressonances | H9: 79 | I9: 79 | J9: 50 | K9: 61 | L9: 81 | M9: 45 | N9: 61 | O9: 78 | P9: 66.75 | R9: 79 | S9: 3.95 | T9: 79 | U9: 3.95 | V9: 50 | W9: 2.5 | X9: 61 | Y9: 3.05 | Z9: 81 | AA9: 4.05 | AB9: 45 | AC9: 2.25 | AD9: 61 | AE9: 3.05 | AF9: 78 | AG9: 3.9
A10: 12 | B10: → | C10: 3 | F10: Sounddirect | H10: 69 | I10: 72 | J10: 55 | K10: 64 | L10: 67 | M10: 42 | N10: 62 | O10: 50 | P10: 60.125 | R10: 69 | S10: 3.45 | T10: 72 | U10: 3.6 | V10: 55 | W10: 2.75 | X10: 64 | Y10: 3.2 | Z10: 67 | AA10: 3.35 | AB10: 42 | AC10: 2.1 | AD10: 62 | AE10: 3.1 | AF10: 50 | AG10: 2.5
A11: 23 | B11: → | C11: 3 | F11: Průměr | H11: =SUM(H7:H10)/($H$14*4) -> 3.8375 | I11: =SUM(I7:I10)/($H$14*4) -> 3.625 | J11: 2.5375 | K11: 3.0125 | L11: 3.675 | M11: 2.05 | N11: 3.0875 | O11: 3.575
A12: 29 | B12: → | C12: 3
A13: 6 | B13: → | C13: 3 | S13: Průměrné hodnocení pro film Vlčí jáma | AA13: Průměrné hodnocení pro film C a k polní maršálek
A14: 11 | B14: → | C14: 4 | G14: počet osob: | H14: 20 | S14: Metoda digitalizace | U14: Ukázka číslo: | W14: Průměr celkem: | AA14: Metoda digitalizace | AC14: Ukázka číslo: | AE14: Průměr celkem:
A15: 20 | B15: → | C15: 4 | U15: 1 (1) | V15: 2 (8) | AC15: 1 (3) | AD15: 2 (6)
A16: 26 | B16: → | C16: 4 | S16: Barrandov | U16: =S7 -> 4.05 | V16: =AG7 -> 3.95 | W16: =AVERAGE(U16:V16) -> 4 | AA16: Barrandov | AC16: =W7 -> 2.4 | AD16: =AC7 -> 1.9 | AE16: =AVERAGE(AC16:AD16) -> 2.15
A17: 5 | B17: → | C17: 3 | F17: Souhn výsledků Posuzování na subjektivních škálách | S17: COSP | U17: =S8 -> 3.9 | V17: =AG8 -> 3.95 | W17: =AVERAGE(U17:V17) -> 3.925 | AA17: COSP | AC17: =W8 -> 2.5 | AD17: =AC8 -> 1.95 | AE17: =AVERAGE(AC17:AD17) -> 2.225
A18: 8 | B18: → | C18: 4 | F18: Metoda digitalizace | H18: Ukázka | P18: Průměr | S18: Ressonances | U18: 3.95 | V18: 3.9 | W18: 3.925 | AA18: Ressonances | AC18: 2.5 | AD18: 2.25 | AE18: 2.375
A19: 14 | B19: → | C19: 2 | H19: 1 | I19: 2 | J19: 3 | K19: 4 | L19: 5 | M19: 6 | N19: 7 | O19: 8 | S19: Sounddirect | U19: 3.45 | V19: 2.5 | W19: 2.975 | AA19: Sounddirect | AC19: 2.75 | AD19: 2.1 | AE19: 2.425
A20: 17 | B20: → | C20: 3 | F20: Barrandov | H20: =H7/$H$14 -> 4.05 | I20: =I7/$H$14 -> 4.05 | J20: 2.4 | K20: 2.7 | L20: 3.75 | M20: 1.9 | N20: 3.05 | O20: 3.95 | P20: =SUM(H20:O20)/8 -> 3.23125
A21: 31 | B21: → | C21: 4 | F21: COSP | H21: =H8/$H$14 -> 3.9 | I21: 2.9 | J21: 2.5 | K21: 3.1 | L21: 3.55 | M21: 1.95 | N21: 3.15 | O21: 3.95 | P21: =SUM(H21:O21)/8 -> 3.125
A22: 25 | B22: → | C22: 4 | F22: Ressonances | H22: 3.95 | I22: 3.95 | J22: 2.5 | K22: 3.05 | L22: 4.05 | M22: 2.25 | N22: 3.05 | O22: 3.9 | P22: 3.3375 | S22: Průměrné hodnocení pro film Jedenácté přikázání | AA22: Průměrné hodnocení pro film Markéta Lazarová
A23: 2 | B23: → | C23: 3 | F23: Sounddirect | H23: 3.45 | I23: 3.6 | J23: 2.75 | K23: 3.2 | L23: 3.35 | M23: 2.1 | N23: 3.1 | O23: 2.5 | P23: 3.00625 | S23: Metoda digitalizace | U23: Ukázka číslo: | W23: Průměr celkem: | AA23: Metoda digitalizace | AC23: Ukázka číslo: | AE23: Průměr celkem:
A24: 27 | B24: → | C24: 3 | F24: Průměr | H24: =SUM(H20:H23)/4 -> 3.8375 | I24: =SUM(I20:I23)/4 -> 3.625 | J24: 2.5375 | K24: 3.0125 | L24: 3.675 | M24: 2.05 | N24: 3.0875 | O24: 3.575 | U24: 1 (4) | V24: 2 (7) | AC24: 1 (2) | AD24: 2 (5)
A25: 24 | B25: → | C25: 4 | S25: Barrandov | U25: =Y7 -> 2.7 | V25: =AE7 -> 3.05 | W25: =AVERAGE(U25:V25) -> 2.875 | AA25: Barrandov | AC25: =U7 -> 4.05 | AD25: =AA7 -> 3.75 | AE25: =AVERAGE(AC25:AD25) -> 3.9
A26: 4 | B26: → | C26: 2 | S26: COSP | U26: =Y8 -> 3.1 | V26: =AE8 -> 3.15 | W26: =AVERAGE(U26:V26) -> 3.125 | AA26: COSP | AC26: =U8 -> 2.9 | AD26: =AA8 -> 3.55 | AE26: =AVERAGE(AC26:AD26) -> 3.225
A27: 15 | B27: → | C27: 4 | S27: Ressonances | U27: 3.05 | V27: 3.05 | W27: 3.05 | AA27: Ressonances | AC27: 3.95 | AD27: 4.05 | AE27: 4
A28: 21 | B28: → | C28: 5 | S28: Sounddirect | U28: 3.2 | V28: 3.1 | W28: 3.15 | AA28: Sounddirect | AC28: 3.6 | AD28: 3.35 | AE28: 3.475
A29: 30 | B29: → | C29: 3
A30: 3 | B30: → | C30: 2
A31: 28 | B31: → | C31: 4 | F31: Posluchač č. | G31: Ukázka 1 | K31: Ukázka 2 | O31: Ukázka 3 | S31: Ukázka 4 | W31: Ukázka 5 | AA31: Ukázka 6 | AE31: Ukázka 7 | AI31: Ukázka 8
A32: 18 | B32: → | C32: 5 | G32: Barr | H32: COSP | I32: Ress | J32: Soundd | K32: Barr | L32: COSP | M32: Ress | N32: Soundd | O32: Barr | P32: COSP | Q32: Ress | R32: Soundd | S32: Barr | T32: COSP | U32: Ress | V32: Soundd | W32: Barr | X32: COSP | Y32: Ress | Z32: Soundd | AA32: Barr | AB32: COSP | AC32: Ress | AD32: Soundd | AE32: Barr | AF32: COSP | AG32: Ress | AH32: Soundd | AI32: Barr | AJ32: COSP | AK32: Ress | AL32: Soundd
A33: 13 | B33: → | C33: 5 | F33: 1 | G33: 5 | H33: 3 | I33: 4 | J33: 4 | K33: 4 | L33: 2 | M33: 4 | N33: 4 | O33: 4 | P33: 4 | Q33: 3 | R33: 3 | S33: 3 | T33: 4 | U33: 3 | V33: 5 | W33: 4 | X33: 4 | Y33: 5 | Z33: 3 | AA33: 3 | AB33: 2 | AC33: 5 | AD33: 3 | AE33: 3 | AF33: 3 | AG33: 4 | AH33: 3 | AI33: 4 | AJ33: 5 | AK33: 5 | AL33: 2
A34: 16 | B34: → | C34: 5 | F34: 2 | G34: 5 | H34: 3 | I34: 4 | J34: 4 | K34: 4 | L34: 2 | M34: 4 | N34: 4 | O34: 4 | P34: 4 | Q34: 3 | R34: 3 | S34: 3 | T34: 4 | U34: 3 | V34: 5 | W34: 4 | X34: 4 | Y34: 5 | Z34: 3 | AA34: 3 | AB34: 2 | AC34: 5 | AD34: 3 | AE34: 3 | AF34: 3 | AG34: 4 | AH34: 3 | AI34: 4 | AJ34: 5 | AK34: 5 | AL34: 2
A35: 22 | B35: → | C35: 2 | F35: 3 | G35: 3 | H35: 3 | I35: 1 | J35: 1 | K35: 4 | L35: 2 | M35: 4 | N35: 2 | O35: 2 | P35: 2 | Q35: 3 | R35: 4 | S35: 3 | T35: 4 | U35: 3 | V35: 4 | W35: 3 | X35: 2 | Y35: 3 | Z35: 1 | AA35: 1 | AB35: 2 | AC35: 2 | AD35: 2 | AE35: 4 | AF35: 4 | AG35: 2 | AH35: 3 | AI35: 4 | AJ35: 3 | AK35: 3 | AL35: 2
A36: 9 | B36: → | C36: 3 | F36: 4 | G36: 3 | H36: 5 | I36: 5 | J36: 4 | K36: 5 | L36: 3 | M36: 4 | N36: 4 | O36: 2 | P36: 3 | Q36: 1 | R36: 2 | S36: 3 | T36: 3 | U36: 3 | V36: 2 | W36: 4 | X36: 3 | Y36: 4 | Z36: 3 | AA36: 2 | AB36: 2 | AC36: 1 | AD36: 1 | AE36: 2 | AF36: 3 | AG36: 2 | AH36: 3 | AI36: 3 | AJ36: 3 | AK36: 4 | AL36: 3
A37: 7 | B37: → | C37: 2 | F37: 5 | G37: 5 | H37: 4 | I37: 5 | J37: 4 | K37: 5 | L37: 3 | M37: 5 | N37: 4 | O37: 3 | P37: 3 | Q37: 2 | R37: 3 | S37: 3 | T37: 3 | U37: 4 | V37: 4 | W37: 4 | X37: 4 | Y37: 4 | Z37: 4 | AA37: 2 | AB37: 2 | AC37: 2 | AD37: 2 | AE37: 3 | AF37: 4 | AG37: 3 | AH37: 4 | AI37: 4 | AJ37: 4 | AK37: 4 | AL37: 1
F38: 6 | G38: 3 | H38: 5 | I38: 5 | J38: 4 | K38: 4 | L38: 4 | M38: 4 | N38: 4 | O38: 2 | P38: 1 | Q38: 2 | R38: 2 | S38: 2 | T38: 3 | U38: 2 | V38: 2 | W38: 5 | X38: 4 | Y38: 5 | Z38: 4 | AA38: 1 | AB38: 1 | AC38: 1 | AD38: 2 | AE38: 2 | AF38: 3 | AG38: 2 | AH38: 3 | AI38: 5 | AJ38: 4 | AK38: 4 | AL38: 2
F39: 7 | G39: 4 | H39: 4 | I39: 5 | J39: 4 | K39: 3 | L39: 2 | M39: 3 | N39: 3 | O39: 1 | P39: 1 | Q39: 1 | R39: 2 | S39: 3 | T39: 3 | U39: 3 | V39: 3 | W39: 3 | X39: 2 | Y39: 3 | Z39: 4 | AA39: 1 | AB39: 1 | AC39: 1 | AD39: 1 | AE39: 4 | AF39: 3 | AG39: 3 | AH39: 3 | AI39: 3 | AJ39: 3 | AK39: 4 | AL39: 1
F40: 8 | G40: 4 | H40: 5 | I40: 4 | J40: 4 | K40: 4 | L40: 3 | M40: 4 | N40: 4 | O40: 2 | P40: 2 | Q40: 2 | R40: 2 | S40: 3 | T40: 3 | U40: 2 | V40: 3 | W40: 4 | X40: 4 | Y40: 4 | Z40: 4 | AA40: 2 | AB40: 2 | AC40: 2 | AD40: 2 | AE40: 2 | AF40: 2 | AG40: 2 | AH40: 2 | AI40: 4 | AJ40: 4 | AK40: 3 | AL40: 4
F41: 9 | G41: 3 | H41: 3 | I41: 3 | J41: 2 | K41: 3 | L41: 2 | M41: 3 | N41: 3 | O41: 3 | P41: 3 | Q41: 3 | R41: 4 | S41: 2 | T41: 3 | U41: 4 | V41: 1 | W41: 3 | X41: 2 | Y41: 5 | Z41: 5 | AA41: 2 | AB41: 2 | AC41: 2 | AD41: 2 | AE41: 4 | AF41: 5 | AG41: 5 | AH41: 2 | AI41: 4 | AJ41: 4 | AK41: 3 | AL41: 4
F42: 10 | G42: 5 | H42: 3 | I42: 3 | J42: 4 | K42: 5 | L42: 4 | M42: 4 | N42: 4 | O42: 3 | P42: 4 | Q42: 4 | R42: 3 | S42: 3 | T42: 3 | U42: 4 | V42: 4 | W42: 5 | X42: 5 | Y42: 5 | Z42: 4 | AA42: 3 | AB42: 3 | AC42: 3 | AD42: 3 | AE42: 3 | AF42: 3 | AG42: 3 | AH42: 4 | AI42: 4 | AJ42: 5 | AK42: 5 | AL42: 4
F43: 11 | G43: 3 | H43: 4 | I43: 5 | J43: 4 | K43: 5 | L43: 4 | M43: 5 | N43: 4 | O43: 2 | P43: 2 | Q43: 2 | R43: 3 | S43: 2 | T43: 2 | U43: 3 | V43: 2 | W43: 4 | X43: 4 | Y43: 4 | Z43: 4 | AA43: 2 | AB43: 2 | AC43: 2 | AD43: 1 | AE43: 3 | AF43: 2 | AG43: 3 | AH43: 3 | AI43: 5 | AJ43: 5 | AK43: 4 | AL43: 2
F44: 12 | G44: 4 | H44: 5 | I44: 5 | J44: 3 | K44: 4 | L44: 3 | M44: 4 | N44: 4 | O44: 3 | P44: 2 | Q44: 3 | R44: 3 | S44: 1 | T44: 2 | U44: 1 | V44: 3 | W44: 3 | X44: 4 | Y44: 3 | Z44: 3 | AA44: 1 | AB44: 2 | AC44: 1 | AD44: 2 | AE44: 1 | AF44: 1 | AG44: 2 | AH44: 1 | AI44: 4 | AJ44: 4 | AK44: 4 | AL44: 2
F45: 13 | G45: 4 | H45: 4 | I45: 5 | J45: 4 | K45: 3 | L45: 2 | M45: 2 | N45: 3 | O45: 1 | P45: 1 | Q45: 1 | R45: 2 | S45: 4 | T45: 3 | U45: 3 | V45: 3 | W45: 3 | X45: 2 | Y45: 3 | Z45: 4 | AA45: 1 | AB45: 1 | AC45: 1 | AD45: 1 | AE45: 4 | AF45: 3 | AG45: 3 | AH45: 3 | AI45: 4 | AJ45: 3 | AK45: 4 | AL45: 3
F46: 14 | G46: 5 | H46: 5 | I46: 4 | J46: 4 | K46: 5 | L46: 4 | M46: 4 | N46: 4 | O46: 3 | P46: 1 | Q46: 3 | R46: 2 | S46: 3 | T46: 3 | U46: 3 | V46: 4 | W46: 4 | X46: 4 | Y46: 3 | Z46: 3 | AA46: 2 | AB46: 2 | AC46: 2 | AD46: 1 | AE46: 4 | AF46: 3 | AG46: 4 | AH46: 4 | AI46: 4 | AJ46: 3 | AK46: 3 | AL46: 3
F47: 15 | G47: 4 | H47: 3 | I47: 3 | J47: 1 | K47: 4 | L47: 2 | M47: 4 | N47: 2 | O47: 2 | P47: 2 | Q47: 3 | R47: 3 | S47: 3 | T47: 4 | U47: 3 | V47: 4 | W47: 3 | X47: 2 | Y47: 3 | Z47: 1 | AA47: 1 | AB47: 2 | AC47: 2 | AD47: 2 | AE47: 4 | AF47: 4 | AG47: 3 | AH47: 3 | AI47: 4 | AJ47: 3 | AK47: 3 | AL47: 2
F48: 16 | G48: 5 | H48: 3 | I48: 3 | J48: 4 | K48: 5 | L48: 4 | M48: 4 | N48: 4 | O48: 3 | P48: 4 | Q48: 4 | R48: 3 | S48: 3 | T48: 3 | U48: 4 | V48: 4 | W48: 5 | X48: 5 | Y48: 5 | Z48: 4 | AA48: 3 | AB48: 3 | AC48: 3 | AD48: 3 | AE48: 3 | AF48: 3 | AG48: 3 | AH48: 4 | AI48: 4 | AJ48: 5 | AK48: 5 | AL48: 4
F49: 17 | G49: 4 | H49: 5 | I49: 2 | J49: 2 | K49: 4 | L49: 3 | M49: 5 | N49: 3 | O49: 2 | P49: 2 | Q49: 2 | R49: 3 | S49: 2 | T49: 2 | U49: 2 | V49: 2 | W49: 3 | X49: 5 | Y49: 4 | Z49: 2 | AA49: 1 | AB49: 2 | AC49: 3 | AD49: 2 | AE49: 2 | AF49: 3 | AG49: 3 | AH49: 3 | AI49: 4 | AJ49: 4 | AK49: 3 | AL49: 2
F50: 18 | G50: 5 | H50: 5 | I50: 5 | J50: 4 | K50: 4 | L50: 4 | M50: 4 | N50: 5 | O50: 3 | P50: 4 | Q50: 3 | R50: 3 | S50: 3 | T50: 4 | U50: 4 | V50: 2 | W50: 4 | X50: 4 | Y50: 5 | Z50: 4 | AA50: 3 | AB50: 3 | AC50: 3 | AD50: 4 | AE50: 4 | AF50: 4 | AG50: 4 | AH50: 4 | AI50: 4 | AJ50: 4 | AK50: 4 | AL50: 2
F51: 19 | G51: 4 | H51: 3 | I51: 5 | J51: 4 | K51: 3 | L51: 3 | M51: 3 | N51: 3 | O51: 1 | P51: 1 | Q51: 2 | R51: 2 | S51: 3 | T51: 3 | U51: 3 | V51: 3 | W51: 4 | X51: 2 | Y51: 3 | Z51: 4 | AA51: 1 | AB51: 1 | AC51: 2 | AD51: 2 | AE51: 4 | AF51: 3 | AG51: 3 | AH51: 3 | AI51: 3 | AJ51: 3 | AK51: 4 | AL51: 2
F52: 20 | G52: 3 | H52: 3 | I52: 3 | J52: 4 | K52: 3 | L52: 2 | M52: 5 | N52: 4 | O52: 2 | P52: 4 | Q52: 3 | R52: 3 | S52: 2 | T52: 3 | U52: 4 | V52: 4 | W52: 3 | X52: 5 | Y52: 5 | Z52: 3 | AA52: 3 | AB52: 2 | AC52: 2 | AD52: 3 | AE52: 2 | AF52: 4 | AG52: 3 | AH52: 4 | AI52: 4 | AJ52: 5 | AK52: 4 | AL52: 3
E58: 4 | G58: 2.15 | I58: 2.875 | K58: 3.9
E59: 3.925 | G59: 2.225 | I59: 3.125 | K59: 3.225
E60: 3.925 | G60: 2.375 | I60: 3.05 | K60: 4
E61: 2.975 | G61: 2.425 | I61: 3.15 | K61: 3.475

Sheet Grafy
B21: Vlčí jáma
B38: C. a k. polní maršálek
B56: Jedenácté přikázání
B74: Markéta Lazarová
